fUST/lending_fUST_20240225
["ID","MTS","AMOUNT","RATE_DAILY","PERIOD"]
[315102813,1708821041774,-500.0,0.00019552,2]
[315102814,1708821041783,-500.0,0.00019552,2]
[315102815,1708821041792,-501.01357825,0.00019552,2]
[315102816,1708821041801,-500.0,0.00019552,2]
[315102817,1708821041811,-500.0,0.00019552,2]
[315102818,1708821041820,-614.59807103,0.00019552,2]
[315102819,1708821041829,-500.0,0.00019552,2]
[315102820,1708821041839,-500.0,0.00019552,2]
[315102821,1708821041849,-500.0,0.00019552,2]
[315102822,1708821041858,-500.0,0.00019552,2]
[315102823,1708821041868,-500.0,0.00019552,2]
[315102824,1708821041877,-500.0,0.00019552,2]
[315102825,1708821041887,-500.0,0.00019552,2]
[315102826,1708821041896,-500.0,0.00019552,2]
[315102827,1708821041905,-500.0,0.00019552,2]
[315102828,1708821041914,-500.0,0.00019552,2]
[315102829,1708821041924,-500.0,0.00019552,2]
[315102830,1708821041933,-500.0,0.00019552,2]
[315102831,1708821041943,-1444.25,0.00019552,2]
[315102832,1708821041952,-500.0,0.00019552,2]
[315102833,1708821041961,-500.0,0.00019552,2]
[315102834,1708821041970,-500.0,0.00019552,2]
[315102835,1708821041980,-500.0,0.00019552,2]
[315102836,1708821041990,-644.65786243,0.00019552,2]
[315102837,1708821042000,-500.0,0.00019552,2]
[315102838,1708821042104,-500.0,0.00019552,2]
[315102839,1708821042113,-500.0,0.00019552,2]
[315102840,1708821042122,-500.0,0.00019552,2]
[315102841,1708821042132,-500.0,0.00019552,2]
[315102842,1708821042142,-1225.73,0.00019552,2]
[315102843,1708821042151,-500.0,0.00019552,2]
[315102844,1708821042161,-1627.7,0.00019552,2]
[315102845,1708821042170,-500.0,0.00019552,2]
[315102846,1708821042180,-500.0,0.00019552,2]
[315102847,1708821042189,-500.80808631,0.00019552,2]
[315102848,1708821042200,-500.0,0.00019552,2]
[315102849,1708821042209,-500.0,0.00019552,2]
[315102850,1708821042218,-325.98829797,0.00019552,2]
[315102851,1708821042229,-603.29,0.00019552,2]
[315102852,1708821042239,-500.0,0.00019552,2]
[315102853,1708821042248,-4901.38,0.00019552,2]
[315102854,1708821042258,-197.68,0.00019552,2]
[315102855,1708821042267,-2110.76,0.00019552,2]
[315102856,1708821042276,-500.0,0.00019552,2]
[315102857,1708821042285,-500.0,0.00019552,2]
[315102858,1708821042294,-500.0,0.00019552,2]
[315102859,1708821042303,-500.0,0.00019552,2]
[315102860,1708821042313,-500.0,0.00019552,2]
[315102861,1708821042323,-500.0,0.00019552,2]
[315102862,1708821042332,-500.0,0.00019552,2]
[315102863,1708821042341,-511.56479016,0.00019552,2]
[315102864,1708821042350,-500.0,0.00019552,2]
[315102865,1708821042361,-500.0,0.00019552,2]
[315102866,1708821042370,-1098.43,0.00019552,2]
[315102867,1708821042379,-585.23182557,0.00019552,2]
[315102868,1708821042388,-195.72885731,0.00019553,2]
[315102869,1708821042398,-500.0,0.00019553,2]
[315102870,1708821042407,-500.0,0.00019553,2]
[315102871,1708821042417,-500.0,0.00019553,2]
[315102872,1708821042426,-500.0,0.00019553,2]
[315102873,1708821042436,-500.0,0.00019553,2]
[315102874,1708821042445,-500.0,0.00019553,2]
[315102875,1708821042454,-500.0,0.00019553,2]
[315102876,1708821042463,-500.0,0.00019553,2]
[315102877,1708821042473,-500.0,0.00019553,2]
[315102878,1708821042487,-500.0,0.00019553,2]
[315102879,1708821042497,-500.0,0.00019553,2]
[315102880,1708821042507,-500.0,0.00019553,2]
[315102881,1708821042517,-500.0,0.00019553,2]
[315102882,1708821042528,-500.0,0.00019553,2]
[315102883,1708821042540,-1006.23,0.00019553,2]
[315102884,1708821042550,-1006.23,0.00019553,2]
[315102885,1708821042560,-500.0,0.00019553,2]
[315102886,1708821042574,-1006.23,0.00019553,2]
[315102887,1708821042584,-1006.23,0.00019553,2]
[315102888,1708821042594,-500.60428601,0.00019553,2]
[315102890,1708821042603,-500.0,0.00019553,2]
[315102892,1708821042612,-1627.24,0.00019553,2]
[315102894,1708821042621,-500.0,0.00019553,2]
[315102896,1708821042631,-806.99,0.00019553,2]
[315102898,1708821042640,-1503.38,0.00019553,2]
[315102900,1708821042650,-500.0,0.00019553,2]
[315102902,1708821042659,-500.0,0.00019553,2]
[315102904,1708821042668,-500.0,0.00019553,2]
[315102906,1708821042677,-500.0,0.00019553,2]
[315102908,1708821042687,-500.0,0.00019553,2]
[315102910,1708821042696,-500.0,0.00019553,2]
[315102912,1708821042707,-500.0,0.00019553,2]
[315102914,1708821042716,-500.0,0.00019553,2]
[315102916,1708821042726,-500.0,0.00019553,2]
[315102918,1708821042735,-500.0,0.00019553,2]
[315102920,1708821042744,-483.94546259,0.00019554,2]
[315102923,1708821042753,-551.55464271,0.00019554,2]
[315102925,1708821042762,-500.0,0.00019554,2]
[315102927,1708821042772,-500.0,0.00019554,2]
[315102929,1708821042781,-366.74895436,0.00019554,2]
[315102931,1708821042790,-500.0,0.00019554,2]
[315102932,1708821042800,-500.0,0.00019554,2]
[315102934,1708821042810,-500.0,0.00019554,2]
[315102936,1708821042819,-500.0,0.00019554,2]
[315102938,1708821042828,-500.0,0.00019554,2]
[315102940,1708821042837,-501.07745012,0.00019554,2]
[315102941,1708821042847,-500.0,0.00019554,2]
[315102943,1708821042856,-500.0,0.00019554,2]
[315102944,1708821042867,-500.0,0.00019554,2]
[315102946,1708821042876,-225.36992675,0.00019554,2]
[315102947,1708821042886,-500.0,0.00019554,2]
[315102948,1708821042895,-396.59778107,0.00019554,2]
[315102949,1708821042905,-500.0,0.00019554,2]
[315102951,1708821042914,-500.0,0.00019554,2]
[315102953,1708821042923,-500.0,0.00019554,2]
[315102954,1708821042933,-1006.23,0.00019554,2]
[315102955,1708821042942,-1006.23,0.00019554,2]
[315102956,1708821042952,-500.0,0.00019554,2]
[315102957,1708821042961,-500.0,0.00019554,2]
[315102958,1708821042970,-166.666666,0.00019627,2]
[315102959,1708821042981,-306.0,0.00019644,2]
[315102960,1708821042990,-306.5507139,0.00019652,2]
[315102961,1708821042999,-500.0,0.00019715,2]
[315102962,1708821043009,-875.24,0.00019715,2]
[315102963,1708821043019,-500.0,0.00019715,2]
[315102964,1708821043027,-500.0,0.00019717,2]
[315102965,1708821043037,-500.0,0.00019717,2]
[315102966,1708821043046,-7657.74,0.00019718,2]
[315102967,1708821043056,-500.0,0.00019718,2]
[315102968,1708821043065,-500.0,0.00019726,2]
[315102969,1708821043074,-500.0,0.00019726,2]
[315102970,1708821043083,-5894.08,0.00019726,2]
[315102971,1708821043092,-500.0,0.00019726,2]
[315102972,1708821043101,-500.0,0.00019726,2]
[315102973,1708821043110,-500.0,0.00019726,2]
[315102974,1708821043119,-500.0,0.00019726,2]
[315102975,1708821043128,-500.0,0.00019726,2]
[315102976,1708821043137,-571.8,0.00019726,2]
[315102977,1708821043147,-653.43,0.00019726,2]
[315102978,1708821043156,-3435.59,0.00019726,2]
[315102979,1708821043165,-1532.6,0.00019726,2]
[315102980,1708821043174,-5928.56,0.00019726,2]
[315102981,1708821043184,-909.19,0.00019726,2]
[315102982,1708821043193,-1496.43,0.00019726,2]
[315102983,1708821043202,-200.5294442,0.00019726,2]
[315102984,1708821043212,-500.0,0.00019728,2]
[315102985,1708821043221,-500.0,0.00019728,2]
[315102986,1708821043231,-500.0,0.00019728,2]
[315102987,1708821043240,-500.0,0.00019728,2]
[315102988,1708821043249,-832.26,0.00019728,2]
[315102989,1708821043258,-1095.24,0.00019728,2]
[315102990,1708821043267,-500.0,0.00019728,2]
[315102991,1708821043277,-500.0,0.00019728,2]
[315102992,1708821043286,-237.39225171,0.00019728,2]
[315102993,1708821043295,-500.0,0.00019728,2]
[315102994,1708821043305,-431.47201084,0.00019728,2]
[315102995,1708821043314,-500.0,0.00019728,2]
[315102996,1708821043324,-500.0,0.00019728,2]
[315102997,1708821043332,-500.0,0.00019728,2]
[315102998,1708821043341,-500.0,0.00019728,2]
[315102999,1708821043350,-500.0,0.00019728,2]
[315103000,1708821043360,-500.0,0.00019728,2]
[315103001,1708821043369,-500.0,0.00019826,2]
[315103002,1708821043378,-500.0,0.00019826,2]
[315103003,1708821043387,-501.85083767,0.00019826,2]
[315103004,1708821043396,-500.0,0.00019826,2]
[315103005,1708821043405,-500.0,0.00019826,2]
[315103006,1708821043415,-500.0,0.00019826,2]
[315103007,1708821043424,-890.85,0.00019826,2]
[315103008,1708821043433,-500.0,0.00019826,2]
[315103009,1708821043443,-500.0,0.00019826,2]
[315103010,1708821043452,-500.0,0.00019826,2]
[315103011,1708821043461,-510.60834629,0.00019826,2]
[315103012,1708821043470,-500.0,0.00019826,2]
[315103013,1708821043480,-500.0,0.00019826,2]
[315103014,1708821043491,-500.0,0.00019826,2]
[315103015,1708821043502,-500.0,0.00019826,2]
[315103016,1708821043511,-500.0,0.00019826,2]
[315103017,1708821043520,-570.54,0.00019826,2]
[315103018,1708821043531,-500.0,0.00019826,2]
[315103019,1708821043541,-500.0,0.00019826,2]
[315103020,1708821043550,-500.0,0.00019826,2]
[315103021,1708821043559,-500.0,0.00019826,2]
[315103022,1708821043569,-500.0,0.00019826,2]
[315103023,1708821043578,-500.0,0.00019826,2]
[315103024,1708821043587,-500.0,0.00019826,2]
[315103025,1708821043597,-500.0,0.00019826,2]
[315103026,1708821043606,-500.0,0.00019826,2]
[315103027,1708821043616,-500.0,0.00019826,2]
[315103028,1708821043625,-500.0,0.00019826,2]
[315103029,1708821043634,-1444.25,0.00019826,2]
[315103030,1708821043643,-500.0,0.00019826,2]
[315103031,1708821043652,-500.0,0.00019826,2]
[315103032,1708821043661,-500.0,0.00019826,2]
[315103033,1708821043670,-500.0,0.00019826,2]
[315103034,1708821043679,-500.0,0.00019826,2]
[315103035,1708821043688,-1225.73,0.00019826,2]
[315103036,1708821043698,-518.08991757,0.00019826,2]
[315103037,1708821043707,-1627.7,0.00019826,2]
[315103038,1708821043716,-500.0,0.00019826,2]
[315103039,1708821043726,-603.29,0.00019826,2]
[315103040,1708821043735,-500.0,0.00019826,2]
[315103041,1708821043744,-4901.38,0.00019826,2]
[315103042,1708821043753,-2110.76,0.00019826,2]
[315103043,1708821043762,-255.36271448,0.00019826,2]
[315103044,1708821043771,-500.0,0.00019826,2]
[315103045,1708821043780,-500.0,0.00019826,2]
[315103046,1708821043789,-312.24134907,0.00019826,2]
[315103047,1708821043798,-500.0,0.00019826,2]
[315103048,1708821043808,-500.0,0.00019826,2]
[315103049,1708821043817,-1098.43,0.00019826,2]
[315103050,1708821043826,-581.22510241,0.00019827,2]
[315103051,1708821043835,-500.0,0.00019827,2]
[315103052,1708821043844,-549.24329572,0.00019827,2]
[315103053,1708821043854,-502.48437314,0.00019827,2]
[315103054,1708821043862,-645.50007399,0.00019827,2]
[315103055,1708821043871,-500.44649528,0.00019827,2]
[315103056,1708821043880,-489.41836535,0.00019827,2]
[315103057,1708821043889,-500.55726059,0.00019827,2]
[315103058,1708821043899,-500.0,0.00019827,2]
[315103059,1708821043908,-470.59177166,0.00019827,2]
[315103060,1708821043917,-500.0,0.00019827,2]
[315103061,1708821043926,-504.84228172,0.00019827,2]
[315103062,1708821043935,-500.0,0.00019827,2]
[315103063,1708821043944,-1006.23,0.00019827,2]
[315103064,1708821043953,-500.0,0.00019827,2]
[315103065,1708821043962,-1627.24,0.00019827,2]
[315103066,1708821043971,-500.0,0.00019827,2]
[315103067,1708821043980,-806.99,0.00019827,2]
[315103068,1708821043990,-1503.38,0.00019827,2]
[315103069,1708821043999,-497.28656827,0.00019827,2]
[315103070,1708821044008,-500.0,0.00019827,2]
[315103071,1708821044016,-500.0,0.00019827,2]
[315103072,1708821044025,-500.0,0.00019827,2]
[315103073,1708821044035,-500.0,0.00019828,2]
[315103074,1708821044043,-500.0,0.00019828,2]
[315103075,1708821044052,-500.0,0.00019828,2]
[315103076,1708821044061,-529.71300492,0.00019828,2]
[315103077,1708821044070,-500.0,0.00019828,2]
[315103078,1708821044080,-500.0,0.00019828,2]
[315103079,1708821044089,-179.23,0.00019828,2]
[315103080,1708821044099,-239.91,0.00019828,2]
[315103081,1708821044107,-500.0,0.00019828,2]
[315103082,1708821044116,-1006.23,0.00019828,2]
[315103083,1708821044125,-200.5294442,0.00019836,2]
[315103084,1708821044134,-200.5294442,0.00019836,2]
[315103085,1708821044143,-200.5294442,0.00019836,2]
[315103086,1708821044152,-200.5294442,0.00019836,2]
[315103087,1708821044161,-153.0,0.00019836,2]
[315103088,1708821044170,-153.0,0.00019836,2]
[315103089,1708821044179,-351.0348,0.00019836,2]
[315103090,1708821044188,-153.0,0.00019836,2]
[315103091,1708821044197,-28949.62919659,0.0001985,2]
[315103092,1708821044206,-153.0,0.0001989,2]
[315103093,1708821044215,-306.0,0.0001989,2]
[315103094,1708821044225,-1518.48968101,0.00019897,2]
[315103095,1708821044234,-999.35260013,0.00019898,2]
[315103096,1708821044243,-1006.23,0.00019898,2]
[315103097,1708821044252,-1006.23,0.00019898,2]
[315103098,1708821044261,-1006.23,0.00019898,2]
[315103099,1708821044270,-200.5294442,0.000199,2]
[315103100,1708821044279,-2085.61115878,0.000199,2]
[315103101,1708821044290,-500.0,0.00019989,2]
[315103102,1708821044299,-875.24,0.00019989,2]
[315103103,1708821044308,-500.0,0.00019989,2]
[315103104,1708821044317,-500.0,0.00019991,2]
[315103105,1708821044326,-500.0,0.00019991,2]
[315103106,1708821044335,-7657.74,0.00019992,2]
[315103107,1708821044344,-440.11976334,0.00019992,2]
[315103108,1708821044353,-273.7273831,0.00019998,2]
[315103109,1708821044362,-621.05516522,0.00019998,2]
[315103110,1708821044371,-4697.79543124,0.00019998,2]
[315103111,1708821044379,-1006.23,0.00019998,2]
[315103112,1708821044388,-500.0,0.00019998,2]
[315103113,1708821044397,-500.0,0.00019998,2]
[315103114,1708821044407,-1254.60718454,0.00019999,2]
[315103115,1708821044416,-1006.23,0.00019999,2]
[315103116,1708821044425,-1006.23,0.00019999,2]
[315103117,1708821044434,-1006.23,0.00019999,2]
[315103118,1708821044443,-1006.23,0.00019999,2]
[315103119,1708821044452,-1006.23,0.00019999,2]
[315103120,1708821044461,-1006.23,0.00019999,2]
[315103121,1708821044470,-1006.23,0.00019999,2]
[315103122,1708821044480,-1006.23,0.00019999,2]
[315103123,1708821044491,-1006.23,0.00019999,2]
[315103124,1708821044501,-1006.23,0.00019999,2]
[315103125,1708821044510,-1006.23,0.00019999,2]
[315103126,1708821044519,-1006.34029046,0.00019999,2]
[315103127,1708821044528,-500.0,0.00019999,2]
[315103128,1708821044538,-500.0,0.00019999,2]
[315103129,1708821044548,-500.0,0.00019999,2]
[315103130,1708821044637,-500.0,0.00019999,2]
[315103131,1708821044656,-500.0,0.00019999,2]
[315103132,1708821044666,-500.0,0.00019999,2]
[315103133,1708821044676,-500.0,0.00019999,2]
[315103134,1708821044686,-279.3313356,0.00019999,2]
[315103135,1708821044696,-500.0,0.00019999,2]
[315103136,1708821044705,-500.0,0.00019999,2]
[315103137,1708821044714,-500.0,0.00019999,2]
[315103138,1708821044725,-500.0,0.00019999,2]
[315103139,1708821044734,-500.0,0.00019999,2]
[315103140,1708821044743,-500.0,0.00019999,2]
[315103141,1708821044751,-500.0,0.00019999,2]
[315103142,1708821044761,-500.0,0.00019999,2]
[315103143,1708821044770,-500.0,0.00019999,2]
[315103144,1708821044780,-500.0,0.00019999,2]
[315103145,1708821044789,-500.0,0.00019999,2]
[315103146,1708821044799,-175.95696323,0.00019999,2]
[315103147,1708821044810,-188.10839072,0.00019999,2]
[315103148,1708821044820,-897593.73714738,0.0002,2]
[315103149,1708821045000,-500.0,0.00019454,2]
[315103150,1708821045010,-499.3688556,0.00019726,2]
[315103151,1708821045022,-245.1011444,0.00019726,2]
[315103152,1708821045031,-43572.69915398,0.0002,2]
[315103153,1708821045043,-2494.15135631,0.0002,2]
[315103154,1708821045132,-161.04671426,0.00019453,2]
[315103155,1708821045142,-500.0,0.00019728,2]
[315103156,1708821045154,-3554.01315857,0.0002,2]
[315103157,1708821045167,-5520.31508126,0.0002,2]
[315103158,1708821045178,-1115.42130348,0.0002,2]
[315103159,1708821045190,-117308.67952737,0.0002,2]
[315103160,1708821045202,-718490.9264951,0.0002,2]
[315103161,1708821045216,-17264.00000052,0.0002,2]
[315103164,1708821046257,-500.0,0.00019443,2]
[315103165,1708821046266,-98.30034209,0.00019552,2]
[315103166,1708821075128,186.48390191,0.00018135,2]
[315103168,1708821630069,21610.80246639,0.000178,2]
[315103169,1708821630102,3289.19753361,0.000178,2]
[315103170,1708821704507,915.7979137,0.00017797,2]
[315103171,1708821931990,983.02781,0.00018137,2]
[315103174,1708822163107,-677.39959869,0.00018271,2]
[315103175,1708822163127,-154.81422293,0.00018272,2]
[315103176,1708822163154,-280.06418147,0.00018276,2]
[315103177,1708822163174,-634.40265833,0.00018716,2]
[315103178,1708822163196,-538.32600737,0.000189,2]
[315103220,1708822232403,-377.70305729,0.000189,2]
[315103222,1708822232413,-165.99900635,0.00019078,2]
[315103224,1708822232422,-300.0,0.00019177,2]
[315103226,1708822232431,-511.77,0.00019177,2]
[315103228,1708822232440,-500.0,0.00019178,2]
[315103230,1708822232449,-500.0,0.00019178,2]
[315103232,1708822232458,-500.0,0.00019178,2]
[315103234,1708822232467,-500.0,0.00019178,2]
[315103236,1708822232476,-500.0,0.00019178,2]
[315103238,1708822232485,-500.0,0.00019178,2]
[315103240,1708822232494,-500.0,0.00019178,2]
[315103242,1708822232503,-500.0,0.00019178,2]
[315103244,1708822232512,-500.0,0.00019178,2]
[315103246,1708822232521,-266.2683007,0.00019178,2]
[315103248,1708822232530,-613.60232286,0.00019178,2]
[315103250,1708822232539,-500.0,0.00019178,2]
[315103252,1708822232548,-500.0,0.00019178,2]
[315103254,1708822232557,-500.0,0.00019178,2]
[315103256,1708822232566,-500.0,0.00019178,2]
[315103258,1708822232575,-500.0,0.00019178,2]
[315103259,1708822232583,-500.0,0.00019178,2]
[315103261,1708822232592,-500.0,0.00019178,2]
[315103262,1708822232601,-12.85163743,0.00019178,2]
[315103264,1708822232613,-487.14836257,0.00019178,2]
[315103266,1708822232622,-500.0,0.00019178,2]
[315103268,1708822232631,-500.0,0.00019178,2]
[315103270,1708822232640,-500.0,0.00019178,2]
[315103271,1708822232649,-640.45616541,0.00019178,2]
[315103273,1708822232658,-500.0,0.00019178,2]
[315103275,1708822232667,-500.0,0.00019178,2]
[315103276,1708822232676,-500.0,0.00019178,2]
[315103278,1708822232684,-500.0,0.00019178,2]
[315103280,1708822232693,-500.0,0.00019178,2]
[315103282,1708822232702,-500.0,0.00019178,2]
[315103284,1708822232711,-500.0,0.00019178,2]
[315103286,1708822232720,-500.0,0.00019178,2]
[315103288,1708822232730,-23.15083836,0.00019178,2]
[315103290,1708822232742,-859.08916164,0.00019178,2]
[315103292,1708822232750,-500.0,0.00019178,2]
[315103294,1708822232759,-240.75289065,0.00019178,2]
[315103312,1708822238330,-677.39959869,0.00018899,2]
[315103314,1708822238340,-259.24710935,0.00019178,2]
[315103315,1708822238349,-500.0,0.00019178,2]
[315103316,1708822238359,-500.0,0.00019178,2]
[315103317,1708822238368,-500.0,0.00019178,2]
[315103318,1708822238377,-219.47365743,0.00019178,2]
[315103319,1708822238386,-500.0,0.00019178,2]
[315103320,1708822238395,-500.0,0.00019178,2]
[315103321,1708822238404,-500.0,0.00019178,2]
[315103322,1708822238412,-219.84428936,0.00019178,2]
[315103323,1708822238421,-500.0,0.00019178,2]
[315103324,1708822238430,-500.0,0.00019178,2]
[315103325,1708822238441,-517.13899166,0.00019178,2]
[315103326,1708822238450,-1457.08,0.00019178,2]
[315103327,1708822238460,-1150.01,0.00019178,2]
[315103328,1708822238470,-500.0,0.00019178,2]
[315103329,1708822238480,-1051.71,0.00019178,2]
[315103330,1708822238489,-500.0,0.00019178,2]
[315103331,1708822238499,-1697.81,0.00019178,2]
[315103332,1708822238508,-500.0,0.00019178,2]
[315103333,1708822238517,-500.0,0.00019178,2]
[315103334,1708822238526,-500.0,0.00019178,2]
[315103335,1708822238535,-213.90309235,0.00019178,2]
[315103336,1708822238545,-500.0,0.00019178,2]
[315103337,1708822238554,-500.47459778,0.00019178,2]
[315103338,1708822238564,-500.0,0.00019178,2]
[315103339,1708822238573,-500.0,0.00019178,2]
[315103340,1708822238582,-68.92030337,0.00019178,2]
[315103341,1708822238594,-431.07969663,0.00019178,2]
[315103342,1708822238603,-500.0,0.00019178,2]
[315103343,1708822238613,-500.0,0.00019178,2]
[315103344,1708822238623,-500.0,0.00019178,2]
[315103345,1708822238635,-5875.21,0.00019178,2]
[315103346,1708822238645,-500.0,0.00019178,2]
[315103347,1708822238655,-500.0,0.00019178,2]
[315103348,1708822238665,-500.0,0.00019178,2]
[315103349,1708822238675,-500.0,0.00019178,2]
[315103350,1708822238686,-500.0,0.00019178,2]
[315103351,1708822238695,-1252.38,0.00019178,2]
[315103352,1708822238705,-500.0,0.00019178,2]
[315103353,1708822238714,-500.0,0.00019178,2]
[315103354,1708822238724,-500.0,0.00019178,2]
[315103355,1708822238733,-500.0,0.00019178,2]
[315103356,1708822238743,-500.0,0.00019178,2]
[315103357,1708822238754,-482.19257145,0.00019178,2]
[315103358,1708822238765,-500.0,0.00019178,2]
[315103359,1708822238776,-500.0,0.00019178,2]
[315103360,1708822238786,-500.0,0.00019178,2]
[315103361,1708822238795,-500.0,0.00019178,2]
[315103362,1708822238805,-500.0,0.00019178,2]
[315103363,1708822238814,-7770.07,0.00019178,2]
[315103364,1708822238823,-500.0,0.00019178,2]
[315103365,1708822238837,-500.0,0.00019178,2]
[315103366,1708822238846,-500.0,0.00019178,2]
[315103367,1708822238855,-500.0,0.00019178,2]
[315103368,1708822238865,-500.0,0.00019178,2]
[315103369,1708822238874,-538.21,0.00019178,2]
[315103370,1708822238884,-500.0,0.00019178,2]
[315103371,1708822238893,-500.0,0.00019178,2]
[315103372,1708822238902,-500.0,0.00019178,2]
[315103373,1708822238912,-500.0,0.00019178,2]
[315103374,1708822238922,-500.0,0.00019178,2]
[315103375,1708822238931,-521.96,0.00019178,2]
[315103376,1708822238941,-500.0,0.00019178,2]
[315103377,1708822238950,-500.0,0.00019178,2]
[315103378,1708822238959,-500.0,0.00019178,2]
[315103379,1708822238968,-638.1,0.00019178,2]
[315103380,1708822238978,-514.86147645,0.00019178,2]
[315103381,1708822238988,-500.0,0.00019178,2]
[315103382,1708822238997,-5136.98,0.00019178,2]
[315103383,1708822239007,-500.0,0.00019178,2]
[315103384,1708822239016,-500.0,0.00019178,2]
[315103385,1708822239025,-500.0,0.00019178,2]
[315103386,1708822239034,-500.0,0.00019178,2]
[315103387,1708822239044,-580.79,0.00019178,2]
[315103388,1708822239053,-3310.21,0.00019178,2]
[315103389,1708822239062,-500.0,0.00019178,2]
[315103390,1708822239072,-500.0,0.00019178,2]
[315103391,1708822239081,-2143.54,0.00019178,2]
[315103392,1708822239090,-500.0,0.00019178,2]
[315103393,1708822239099,-5688.47,0.00019178,2]
[315103394,1708822239109,-506.604493,0.00019178,2]
[315103395,1708822239118,-500.0,0.00019178,2]
[315103396,1708822239127,-500.0,0.00019178,2]
[315103397,1708822239136,-500.0,0.00019178,2]
[315103398,1708822239145,-1462.17,0.00019178,2]
[315103399,1708822239155,-1425.86,0.00019178,2]
[315103400,1708822239164,-648.93143026,0.00019178,2]
[315103401,1708822239173,-500.0,0.00019178,2]
[315103402,1708822239183,-500.0,0.00019178,2]
[315103403,1708822239192,-500.0,0.00019178,2]
[315103404,1708822239201,-500.0,0.00019178,2]
[315103405,1708822239210,-500.0,0.00019178,2]
[315103406,1708822239219,-500.0,0.00019178,2]
[315103407,1708822239228,-936.45,0.00019178,2]
[315103408,1708822239238,-500.0,0.00019178,2]
[315103409,1708822239246,-500.0,0.00019178,2]
[315103410,1708822239255,-500.0,0.00019178,2]
[315103411,1708822239264,-500.0,0.00019178,2]
[315103412,1708822239382,-500.0,0.00019178,2]
[315103413,1708822239391,-500.0,0.00019178,2]
[315103414,1708822239400,-688.69,0.00019178,2]
[315103415,1708822239409,-1091.2,0.00019178,2]
[315103416,1708822239419,-178.102543,0.00019178,2]
[315103417,1708822239428,-180.870337,0.00019178,2]
[315103418,1708822239437,-166.666666,0.00019178,2]
[315103419,1708822239447,-511.77,0.00019232,2]
[315103420,1708822239456,-511.77,0.00019287,2]
[315103421,1708822239465,-200.5294442,0.000193,2]
[315103422,1708822239474,-511.77,0.00019342,2]
[315103423,1708822239483,-292.37119663,0.00019351,2]
[315103424,1708822239493,-511.77,0.00019396,2]
[315103425,1708822239502,-306.3652553,0.000194,2]
[315103426,1708822239511,-500.0,0.00019429,2]
[315103427,1708822239520,-887.6,0.00019429,2]
[315103428,1708822239530,-500.0,0.00019429,2]
[315103429,1708822239539,-500.0,0.00019439,2]
[315103430,1708822239549,-500.0,0.0001944,2]
[315103431,1708822239559,-500.0,0.0001944,2]
[315103432,1708822239569,-514.05907315,0.0001944,2]
[315103433,1708822239580,-500.0,0.0001944,2]
[315103434,1708822239590,-500.0,0.0001944,2]
[315103435,1708822239601,-500.55726059,0.0001944,2]
[315103436,1708822239610,-500.0,0.0001944,2]
[315103437,1708822239619,-500.0,0.0001944,2]
[315103438,1708822239628,-500.0,0.0001944,2]
[315103439,1708822239639,-500.68397729,0.0001944,2]
[315103440,1708822239649,-500.0,0.0001944,2]
[315103441,1708822239658,-343.49757393,0.00019442,2]